bitfinex/quotes_SOLUSD_20250310
["timestamp","ask_amount","ask_price","bid_price","bid_amount"]
[1741614784033,0.063,126.37,126.31,46.58107932]
[1741614784237,46.64407932,126.37,126.32,7.9164]
[1741614784571,46.58107932,126.33,126.3,0.03]
[1741614784942,46.58107932,126.33,126.3,7.9475]
[1741614785161,46.58107932,126.33,126.3,0.03]
[1741614785461,46.58107932,126.36,126.3,0.03]
[1741614785462,10.06,126.32,126.3,0.03]
[1741614785762,75.38107932,126.31,126.3,0.03]
[1741614786078,46.58107932,126.31,126.3,0.03]
[1741614786448,17.9765,126.32,126.3,0.03]
[1741614786773,140.6118075,126.31,126.3,0.03]
[1741614786980,75.38107932,126.31,126.3,0.03]
[1741614787184,46.58107932,126.31,126.3,0.03]
[1741614788773,148.5288075,126.31,126.3,0.03]
[1741614788938,18.64964886,126.3,126.22,7.9224]
[1741614789142,46.58107932,126.24,126.2,7.9239]
[1741614789359,56.72107932,126.25,126.2,7.9239]
[1741614789843,46.58107932,126.24,126.18,46.58107932]
[1741614790042,46.58107932,126.22,126.18,7.925]
[1741614790251,46.58107932,126.21,126.17,7.9556]
[1741614790451,46.58107932,126.2,126.17,0.03]
[1741614790657,56.72107932,126.19,126.17,0.03]
[1741614790867,10.14,126.19,126.17,0.03]
[1741614791057,46.58107932,126.18,126.17,0.03]
[1741614791461,93.16215864,126.18,126.17,0.03]
[1741614791653,28.8,126.17,126.05,7.9333]
[1741614791851,46.58107932,126.1,126.05,7.9333]
[1741614792066,46.58107932,126.09,126.02,7.9352]
[1741614792268,10.22,126.08,126.01,57.33205849]
[1741614792772,188.66,126.12,126.01,77.17165849]
[1741614792965,46.58107932,126.08,126.02,46.58107932]
[1741614793269,18.64964886,126.06,126.01,49.39635849]
[1741614793453,46.58107932,126.03,126.01,49.39635849]
[1741614793658,46.58107932,126.02,126.01,49.39635849]
[1741614793863,28.8,126.06,125.99,46.58107932]
[1741614794043,1.6639,126.08,125.99,46.58107932]
[1741614794044,46.58107932,126.04,125.99,46.58107932]
[1741614794244,10.38,126.03,125.95,0.28082284]
[1741614794456,46.58107932,125.99,125.95,0.28082284]
[1741614794673,46.58107932,126.0,125.95,0.28082284]
[1741614794853,10.38,126.02,125.95,0.28082284]
[1741614794854,46.58107932,126.01,125.96,46.58107932]
[1741614795054,46.58107932,126.0,125.95,46.86190216]
[1741614795276,46.58107932,126.0,125.95,0.28082284]
[1741614795465,46.58107932,125.99,125.95,0.28082284]
[1741614795671,46.58107932,125.97,125.95,0.28082284]
[1741614795987,85.86107932,125.96,125.95,0.28082284]
[1741614796152,86.00324089,125.96,125.94,0.44931654]
[1741614796497,83.32067932,125.95,125.94,0.44931654]
[1741614796779,20.0,125.92,125.91,0.14378129]
[1741614796977,304.43715864,125.92,125.9,0.23005006]
[1741614797151,48.58107932,125.94,125.9,0.23005006]
[1741614797152,75.52324089,125.91,125.9,0.23005006]
[1741614797351,10.54,125.93,125.9,0.23005006]
[1741614797573,28.94216157,125.92,125.9,0.23005006]
[1741614797884,10.54,125.93,125.9,0.23005006]
[1741614798290,246.28107932,125.97,125.91,46.58107932]
[1741614798467,199.7,125.97,125.9,0.23005006]
[1741614798670,46.58107932,125.93,125.9,0.23005006]
[1741614799192,46.58107932,125.95,125.9,0.23005006]
[1741614799391,46.58107932,125.93,125.9,0.23005006]
[1741614799564,46.58107932,125.91,125.9,0.23005006]
[1741614799767,57.54107932,125.91,125.9,0.23005006]
[1741614800559,65.48317932,125.91,125.9,0.23005006]
[1741614800784,20.0,125.88,125.87,0.08281802]
[1741614800989,28.94216157,125.9,125.89,0.08281802]
[1741614801167,18.9021,125.91,125.89,0.08281802]
[1741614801494,18.9024,125.91,125.89,0.08281802]
[1741614801676,46.58107932,125.9,125.89,0.08281802]
[1741614801888,46.72324089,125.9,125.88,0.08281802]
[1741614802073,0.14216157,125.86,125.8,0.9827789]
[1741614802269,46.58107932,125.82,125.8,0.9827789]
[1741614802689,28.8,125.84,125.8,0.9827789]
[1741614802690,36.7467,125.84,125.8,0.9827789]
[1741614802863,28.8,125.9,125.8,8.9318789]
[1741614803061,11.3,125.92,125.81,0.14216157]
[1741614803260,65.82267932,125.92,125.8,28.8046789]
[1741614803471,57.88107932,125.92,125.86,46.58107932]
[1741614803757,189.1,125.94,125.85,18.79181043]
[1741614803966,189.1,125.94,125.91,46.58107932]
[1741614804184,46.58107932,125.98,125.92,46.58107932]
[1741614804491,46.58107932,125.98,125.9,7.9428]
[1741614804696,11.32,125.99,125.93,46.58107932]
[1741614804993,11.32,125.99,125.9,7.9428]
[1741614804994,11.32,125.99,125.91,18.64964886]
[1741614805177,46.58107932,125.98,125.92,46.58107932]
[1741614805381,46.58107932,125.98,125.93,46.58107932]
[1741614805772,11.32,125.99,125.94,46.58107932]
[1741614806090,189.1,126.01,125.94,46.58107932]
[1741614806260,28.8,126.1,126.0,46.58107932]
[1741614806464,46.58107932,126.06,125.94,7.9402]
[1741614806691,46.58107932,126.01,125.94,7.9402]
[1741614806861,11.34,126.03,125.94,7.9402]
[1741614807065,11.34,126.03,125.96,46.58107932]
[1741614807066,46.58107932,126.02,125.96,46.58107932]
[1741614807288,11.36,126.07,125.96,0.14216157]
[1741614807588,46.58107932,126.04,125.94,74.37197932]
[1741614807894,46.58107932,126.02,125.96,46.58107932]
[1741614808189,11.36,126.01,125.96,46.58107932]
[1741614808365,57.94107932,126.01,125.94,7.9402]
[1741614808678,57.94107932,126.01,125.93,18.64964886]
[1741614808679,11.36,126.01,125.93,0.14216157]
[1741614808879,57.94107932,126.01,125.96,46.58107932]
[1741614809263,46.58107932,126.0,125.94,46.58107932]
[1741614809469,11.36,126.01,125.94,46.58107932]
[1741614809688,46.58107932,126.0,125.95,46.58107932]
[1741614809882,57.94107932,126.01,125.95,46.58107932]
[1741614810177,46.58107932,126.0,125.94,46.58107932]
[1741614810589,46.58107932,125.99,125.93,46.58107932]
[1741614810764,18.92481141,125.98,125.93,46.58107932]
[1741614811064,46.58107932,125.97,125.92,46.58107932]
[1741614811679,208.456,126.01,125.92,46.58107932]
[1741614811898,200.52,126.01,125.93,46.58107932]
[1741614812073,46.58107932,125.98,125.91,7.9421]
[1741614812274,208.4559,126.01,125.91,7.9421]
[1741614812475,189.16,126.01,125.95,46.58107932]
[1741614812694,189.16,126.01,125.96,46.58107932]
[1741614812695,200.42,126.01,125.96,46.58107932]
[1741614812893,247.00107932,126.01,125.95,46.58107932]
[1741614813096,46.58107932,126.0,125.92,46.0953]
[1741614813272,46.58107932,125.98,125.92,7.9415]
[1741614813469,208.356,126.01,125.94,46.58107932]
[1741614813667,46.58107932,126.0,125.95,46.58107932]
[1741614813867,208.356,126.01,125.94,46.58107932]
[1741614814097,208.356,126.01,125.95,46.58107932]
[1741614814295,189.16,126.01,125.97,46.58107932]
[1741614814475,189.16,126.01,125.94,46.58107932]
[1741614814476,189.16,126.01,125.99,46.58107932]
[1741614814675,189.16,126.01,125.97,18.64964886]
[1741614814885,189.16,126.01,126.0,46.58107932]
[1741614815193,11.36,126.04,126.0,46.58107932]
[1741614815194,11.36,126.04,126.0,130.1118075]
[1741614815404,7.9314,126.08,126.03,46.58107932]
[1741614815576,46.58107932,126.08,126.03,46.58107932]
[1741614815778,46.58107932,126.08,126.0,64.88107932]
[1741614815980,235.76107932,126.09,126.0,64.88107932]
[1741614816181,216.938,126.09,125.96,87.3276]
[1741614816384,46.58107932,126.03,125.97,18.64964886]
[1741614816585,216.938,126.09,125.99,46.58107932]
[1741614816586,65.87517932,126.04,125.99,46.58107932]
[1741614816779,46.58107932,126.01,125.95,18.3]
[1741614816977,11.36,126.03,125.98,46.58107932]
[1741614817187,11.36,126.03,125.99,46.58107932]
[1741614817389,46.58107932,126.02,125.95,7.9395]
[1741614817695,46.58107932,126.01,125.95,7.9395]
[1741614817876,11.36,126.03,125.96,46.58107932]
[1741614818196,46.58107932,125.99,125.93,7.9409]
[1741614818409,46.58107932,125.99,125.92,7.9413]
[1741614818699,11.36,126.03,125.95,46.58107932]
[1741614818700,46.58107932,126.0,125.95,46.58107932]
[1741614818899,7.9352,126.02,125.93,46.58107932]
[1741614818900,46.58107932,125.99,125.93,46.58107932]
[1741614819070,46.58107932,125.99,125.91,7.9421]
[1741614819071,189.16,125.99,125.94,46.58107932]
[1741614819392,189.16,125.99,125.93,46.58107932]
[1741614819393,46.58107932,125.98,125.93,46.58107932]
[1741614819568,57.90107932,125.97,125.92,46.58107932]
[1741614819767,46.58107932,125.96,125.88,71.50987932]
[1741614819976,46.58107932,125.96,125.9,46.58107932]
[1741614820184,11.32,125.97,125.88,24.9288]
[1741614820185,46.58107932,125.95,125.88,26.2439]
[1741614820491,46.58107932,125.93,125.88,46.58107932]
[1741614820697,54.52127932,125.94,125.89,46.58107932]
[1741614820898,46.58107932,125.95,125.87,18.64964886]
[1741614821103,54.52027932,125.96,125.9,46.58107932]
[1741614821315,46.58107932,125.94,125.86,7.9453]
[1741614821487,46.58107932,125.95,125.89,46.58107932]
[1741614821688,7.9392,125.96,125.9,46.58107932]
[1741614821900,11.32,125.97,125.92,46.58107932]
[1741614822104,19.2584,125.97,125.88,64.88107932]
[1741614822289,235.74107932,125.99,125.93,46.58107932]
[1741614822490,235.74107932,125.99,125.95,46.58107932]
[1741614822491,11.28,125.98,125.95,46.58107932]
[1741614822986,46.58107932,125.97,125.91,7.9421]
[1741614823196,46.58107932,125.97,125.92,46.58107932]
[1741614823376,11.28,125.98,125.95,46.58107932]
[1741614823801,11.28,125.98,125.93,18.64964886]
[1741614824102,11.28,125.98,125.92,36.94964886]
[1741614824307,11.28,125.98,125.95,46.58107932]
[1741614824806,11.28,125.98,125.94,46.58107932]
[1741614825007,19.218,125.98,125.93,54.52177932]
[1741614825184,11.28,125.98,125.94,46.58107932]
[1741614825592,11.28,125.98,125.93,46.58107932]
[1741614825799,11.28,125.98,125.94,46.58107932]
[1741614826007,11.28,125.98,125.93,46.58107932]
[1741614826202,11.28,125.98,125.92,26.2414]
[1741614826403,11.28,125.98,125.92,7.9414]
[1741614826620,11.28,125.98,125.93,46.58107932]
[1741614826782,65.79917932,125.98,125.89,36.94964886]
[1741614826983,46.58107932,125.96,125.9,46.58107932]
[1741614827187,46.58107932,125.96,125.88,18.3]
[1741614827188,39.0625,125.98,125.88,54.52507932]
[1741614827398,46.58107932,125.95,125.89,46.58107932]
[1741614827891,46.58107932,125.93,125.88,7.944]
[1741614828095,39.0625,125.98,125.88,54.52507932]
[1741614828096,46.58107932,125.94,125.88,54.52507932]
[1741614828292,7.9377,125.98,125.89,0.14216157]
[1741614828497,11.36,125.97,125.93,46.58107932]
[1741614828721,11.36,125.97,125.94,46.58107932]
[1741614829014,189.16,125.99,125.95,46.58107932]
[1741614830017,189.16,125.99,125.98,46.58107932]
[1741614830187,189.16,125.99,125.95,18.64964886]
[1741614830386,189.16,125.99,125.98,46.58107932]
[1741614830809,189.16,125.99,125.96,27.7865]
[1741614831014,189.16,125.99,125.93,7.9409]
[1741614831189,189.16,125.99,125.97,46.58107932]
[1741614831515,189.16,125.99,125.94,83.53072818]
[1741614831818,197.0972,125.99,125.9,7.9428]
[1741614831994,189.16,125.99,125.91,18.64964886]
[1741614832202,189.16,125.99,125.92,0.14216157]
[1741614832407,189.16,125.99,125.91,36.94964886]
[1741614832708,189.16,125.99,125.86,81.2]
[1741614832709,216.9402,125.99,125.88,19.8599]
[1741614832887,216.9402,125.99,125.92,46.58107932]
[1741614832888,197.0974,125.99,125.92,46.58107932]
[1741614833090,189.16,125.99,125.95,46.58107932]
[1741614833305,189.16,125.99,125.97,46.58107932]
[1741614833505,189.16,125.99,125.93,36.94964886]
[1741614833690,189.16,125.99,125.95,46.58107932]
[1741614833998,189.16,125.99,125.97,46.58107932]
[1741614834199,189.16,125.99,125.95,46.58107932]
[1741614834516,46.58107932,125.97,125.91,46.58107932]
[1741614834820,46.58107932,125.96,125.91,46.58107932]
[1741614835012,46.58107932,125.97,125.91,46.58107932]
[1741614835517,46.58107932,125.96,125.89,26.2434]
[1741614835703,197.0976,125.99,125.92,46.58107932]
[1741614835904,197.0976,125.99,125.93,46.58107932]
[1741614836216,46.58107932,125.98,125.89,36.94964886]
[1741614836390,197.0973,125.99,125.89,36.94964886]
[1741614836391,46.58107932,125.95,125.9,46.58107932]
[1741614836591,11.4,125.94,125.9,46.58107932]
[1741614836801,11.4,125.94,125.87,7.9447]
[1741614836993,11.4,125.94,125.9,46.58107932]
[1741614837399,11.4,125.94,125.92,46.58107932]
[1741614837714,11.4,125.94,125.89,0.03]
[1741614837921,11.4,125.94,125.92,46.58107932]
[1741614838215,11.4,125.94,125.93,46.58107932]
[1741614838413,11.4,125.94,125.9,7.9422]
[1741614838589,11.4,125.94,125.91,46.58107932]
[1741614838793,11.4,125.94,125.9,46.58107932]
[1741614839196,11.4,125.94,125.89,7.9732]
[1741614839410,11.4,125.94,125.9,46.58107932]
[1741614839596,11.4,125.94,125.89,7.9732]
[1741614839808,11.4,125.94,125.91,46.58107932]
[1741614840206,19.3404,125.94,125.89,0.03]
[1741614840412,46.58107932,125.91,125.89,0.03]
[1741614840720,189.2,125.96,125.9,46.58107932]
[1741614840893,11.38,125.95,125.89,0.17216157]
[1741614841093,189.2,125.96,125.89,0.17216157]
[1741614841415,189.2,125.96,125.94,46.58107932]
[1741614841722,0.063,125.98,125.95,46.58107932]
[1741614841924,0.063,125.98,125.96,46.58107932]
[1741614842095,0.063,125.98,125.97,46.58107932]
[1741614842421,0.063,125.98,125.95,46.58107932]
[1741614842596,0.063,125.98,125.95,18.44216157]
[1741614842929,0.063,125.98,125.97,46.58107932]
[1741614843218,0.063,125.98,125.95,0.14216157]
[1741614843401,0.063,125.98,125.97,65.23072818]
[1741614843603,0.063,125.98,125.97,18.64964886]
[1741614843804,0.063,125.98,125.97,46.58107932]
[1741614843998,0.063,125.98,125.96,46.58107932]
[1741614844214,0.063,125.98,125.97,46.58107932]
[1741614844410,0.063,125.98,125.94,7.9402]
[1741614844608,11.32,125.97,125.93,18.3]
[1741614844822,11.32,125.97,125.94,46.58107932]
[1741614845319,11.32,125.97,125.93,7.9407]
[1741614845524,11.32,125.97,125.95,46.58107932]
[1741614845729,0.063,125.98,125.96,46.58107932]
[1741614845923,0.063,125.98,125.93,7.9407]
[1741614846108,0.063,125.98,125.93,54.52177932]
[1741614846306,46.58107932,125.97,125.91,46.58107932]
[1741614846516,46.64407932,125.98,125.92,54.52247932]
[1741614846714,8.001,125.98,125.9,7.9428]
[1741614846918,46.58107932,125.93,125.89,0.03]
[1741614847102,46.58107932,125.91,125.89,0.03]
[1741614847306,200.48,125.92,125.8,0.9827789]
[1741614847307,64.45537932,125.9,125.8,0.9827789]
[1741614847521,46.58107932,125.88,125.8,0.9827789]
[1741614847727,0.14216157,125.89,125.8,8.9316789]
[1741614848024,189.2,125.92,125.8,8.9316789]
[1741614848025,46.58107932,125.87,125.8,8.9316789]
[1741614848327,11.28,125.88,125.8,8.9316789]
[1741614848526,0.14216157,125.84,125.8,0.9827789]
[1741614848708,6.5832,125.85,125.8,0.9827789]
[1741614848908,6.5832,125.85,125.8,8.9315789]
[1741614849107,6.5832,125.85,125.8,0.9827789]
[1741614849324,6.6034,125.89,125.8,8.9317789]
[1741614849529,1.6008,125.93,125.81,20.79171043]
[1741614849702,235.78107932,125.92,125.81,36.94964886]
[1741614849907,46.58107932,125.89,125.8,47.1045789]
[1741614850107,11.34,125.88,125.82,0.14216157]
[1741614850443,200.56,125.92,125.88,7.944]
[1741614850652,200.56,125.92,125.9,46.58107932]
[1741614850941,11.34,125.96,125.91,46.61107932]
[1741614851103,11.34,125.96,125.91,0.03]
[1741614851300,11.34,125.96,125.94,46.58107932]
[1741614851533,11.34,125.96,125.91,0.03]
[1741614852050,46.58107932,125.95,125.91,0.03]
[1741614852342,46.58107932,125.92,125.91,0.03]
[1741614852908,60.63877932,125.92,125.82,26.2473]
[1741614853105,46.58107932,125.88,125.82,7.9473]
[1741614853333,46.58107932,125.85,125.79,54.53027932]
[1741614853633,46.58107932,125.84,125.8,8.9318789]
[1741614853856,200.76,125.87,125.8,0.9827789]
[1741614854007,46.58107932,125.85,125.8,0.9827789]
[1741614854208,46.58107932,125.86,125.8,47.56385822]
[1741614854516,247.34107932,125.87,125.8,0.9827789]
[1741614854821,200.76,125.87,125.81,7.9484]
[1741614855018,208.7048,125.87,125.8,27.2317789]
[1741614855215,46.58107932,125.86,125.8,73.81285822]
[1741614855415,46.58107932,125.85,125.8,0.9827789]
[1741614855618,46.58107932,125.83,125.8,0.9827789]
[1741614856012,46.58107932,125.86,125.8,55.51285822]
[1741614856218,46.58107932,125.83,125.8,0.9827789]
[1741614856729,46.58107932,125.81,125.8,0.9827789]
[1741614856925,58.08107932,125.81,125.8,0.9827789]
[1741614857126,11.5,125.81,125.8,0.9827789]
[1741614857425,58.08107932,125.81,125.8,0.9827789]
[1741614857834,11.5,125.81,125.8,0.9827789]
[1741614858028,58.08107932,125.81,125.8,0.9827789]
[1741614858618,58.08107932,125.81,125.76,17.23140496]
[1741614858619,0.14216157,125.8,125.76,17.23140496]
[1741614858927,47.04771918,125.77,125.76,17.23140496]
[1741614859232,39.3196,125.81,125.76,17.23140496]
[1741614859233,11.5,125.81,125.76,17.23140496]
[1741614859429,11.5,125.81,125.77,47.04771918]
[1741614859627,11.5,125.81,125.79,47.04771918]
[1741614859936,58.54771918,125.81,125.76,35.53140496]
[1741614860115,47.04771918,125.8,125.76,35.53140496]
[1741614860318,200.9,125.79,125.76,17.23140496]
[1741614860523,54.99611918,125.82,125.76,17.23140496]
[1741614860524,247.96771918,125.78,125.76,17.23140496]
[1741614860729,200.92,125.78,125.76,17.23140496]
[1741614860919,200.92,125.78,125.76,72.23062414]
[1741614861522,200.92,125.78,125.76,25.18290496]
[1741614861723,189.34,125.78,125.77,47.04771918]
[1741614862035,11.62,125.81,125.76,25.18290496]
[1741614862234,58.66771918,125.8,125.76,25.18290496]
[1741614862444,58.66771918,125.8,125.76,17.23140496]
[1741614862614,11.62,125.8,125.76,72.26062414]
[1741614863029,11.62,125.8,125.77,47.04771918]
[1741614863242,11.62,125.8,125.78,47.04771918]
[1741614863418,11.62,125.8,125.76,45.09200496]
[1741614863618,11.62,125.8,125.76,25.21300496]
[1741614864050,47.04771918,125.79,125.76,17.26140496]
[1741614864426,58.66771918,125.8,125.76,17.26140496]
[1741614864629,47.04771918,125.78,125.76,17.26140496]
[1741614864832,47.04771918,125.77,125.76,17.26140496]
[1741614865272,94.23759993,125.77,125.76,17.26140496]
[1741614865424,112.88724879,125.77,125.76,4.96e-06]
[1741614865754,20.14216157,125.75,125.74,0.23274045]
[1741614865928,67.04771918,125.75,125.74,0.23274045]
[1741614866130,67.04771918,125.75,125.61,19.9015]
[1741614866131,85.83952961,125.75,125.61,19.9015]
[1741614866355,20.14216157,125.71,125.7,0.80207722]
[1741614866547,20.0,125.71,125.7,0.80207722]
[1741614866754,87.3115,125.7,125.68,0.56145406]
[1741614866955,6.2115,125.7,125.68,0.56145406]
[1741614867147,47.04771918,125.69,125.68,0.56145406]
[1741614867536,7.9548,125.71,125.68,0.56145406]
[1741614867835,7.9535,125.73,125.68,0.56145406]
[1741614868036,47.04771918,125.71,125.68,0.56145406]
[1741614868550,47.04771918,125.72,125.68,0.56145406]
[1741614868869,189.4,125.74,125.69,47.04771918]
[1741614869157,189.4,125.74,125.68,8.51805406]
[1741614869158,247.98771918,125.74,125.68,55.56577324]
[1741614869355,200.94,125.74,125.69,47.04771918]
[1741614869650,247.98771918,125.74,125.68,8.51805406]
[1741614869829,247.98771918,125.74,125.68,0.56145406]
[1741614870037,47.04771918,125.72,125.68,0.56145406]
[1741614870625,47.04771918,125.73,125.68,0.56145406]
[1741614870947,47.04771918,125.73,125.68,8.51785406]
[1741614871151,47.04771918,125.73,125.68,0.56145406]
[1741614871386,47.04771918,125.71,125.68,0.56145406]
[1741614871654,7.9536,125.73,125.68,0.56145406]
[1741614871824,47.04771918,125.7,125.68,0.56145406]
[1741614872020,47.04771918,125.71,125.68,0.56145406]
[1741614872220,47.04771918,125.69,125.68,0.56145406]
[1741614872449,11.52,125.7,125.68,0.56145406]
[1741614874157,47.04771918,125.69,125.68,0.56145406]
[1741614874354,11.52,125.7,125.68,0.56145406]
[1741614874765,66.52341918,125.7,125.68,0.56145406]
[1741614874968,11.52,125.7,125.68,0.56145406]
[1741614875155,47.04771918,125.69,125.68,0.56145406]
[1741614875774,19.4755,125.7,125.68,0.59145406]
[1741614876063,47.04771918,125.69,125.68,0.59145406]
[1741614877191,20.0,125.66,125.63,0.36382222]
[1741614877395,47.18988075,125.64,125.63,0.36382222]
[1741614877705,189.58,125.64,125.63,0.36382222]
[1741614877889,236.62771918,125.64,125.63,0.36382222]
[1741614878186,283.81759993,125.64,125.63,0.36382222]
[1741614878389,283.81759993,125.64,125.6,0.18191111]
[1741614878390,20.0,125.61,125.6,0.14552889]
[1741614878689,11.58,125.61,125.6,0.58211556]
[1741614878858,66.73098075,125.61,125.6,0.58211556]
[1741614879058,58.62771918,125.61,125.6,0.58211556]
[1741614879302,11.58,125.61,125.6,0.58211556]
[1741614880155,236.62771918,125.64,125.6,0.58211556]
[1741614880156,189.58,125.64,125.6,0.58211556]
[1741614880359,11.64,125.65,125.63,47.04771918]
[1741614880577,11.64,125.65,125.64,47.04771918]
[1741614880789,11.62,125.69,125.64,47.04771918]
[1741614881084,11.62,125.69,125.65,47.04771918]
[1741614881490,236.68771918,125.71,125.64,7.959]
[1741614881491,189.64,125.71,125.67,47.04771918]
[1741614881788,189.64,125.71,125.69,47.04771918]
[1741614881963,189.64,125.71,125.68,47.04771918]
[1741614882156,11.6,125.72,125.7,47.04771918]
[1741614882361,11.62,125.76,125.71,47.04771918]
[1741614882591,11.62,125.76,125.66,36.94964886]
[1741614882592,58.66771918,125.76,125.7,47.04771918]
[1741614882882,11.62,125.76,125.7,47.04771918]
[1741614883089,47.04771918,125.74,125.69,7.9559]
[1741614883293,47.04771918,125.72,125.65,1.6046]
[1741614883486,66.61941918,125.76,125.68,47.04771918]
[1741614883790,11.62,125.76,125.69,47.04771918]
[1741614884091,58.66771918,125.76,125.7,47.04771918]
[1741614884295,47.04771918,125.73,125.67,47.04771918]
[1741614884774,47.04771918,125.72,125.66,47.04771918]
[1741614884975,47.04771918,125.71,125.66,47.04771918]
[1741614885290,58.60771918,125.7,125.65,1.6046]
[1741614885602,11.56,125.7,125.66,47.04771918]
[1741614885763,58.60771918,125.7,125.64,7.959]
[1741614886092,58.60771918,125.7,125.64,55.00671918]
[1741614886418,47.04771918,125.69,125.64,7.959]
[1741614886604,58.60771918,125.7,125.64,55.00671918]
[1741614886762,11.56,125.7,125.66,47.04771918]
[1741614887095,47.04771918,125.68,125.63,55.15304807]
[1741614887389,58.60771918,125.7,125.64,47.04771918]
[1741614887778,58.60771918,125.7,125.63,55.15304807]
[1741614887779,47.04771918,125.68,125.63,55.15304807]
[1741614888610,19.5155,125.7,125.63,0.14552889]
[1741614888611,47.04771918,125.67,125.63,0.14552889]
[1741614888786,47.04771918,125.66,125.63,0.14552889]
[1741614888975,47.04771918,125.66,125.64,0.03]
[1741614888976,47.04771918,125.65,125.64,0.03]
[1741614889715,47.04771918,125.65,125.61,0.130976]
[1741614889716,20.0,125.62,125.61,0.130976]
[1741614889883,78.54771918,125.62,125.61,0.523904]
[1741614890289,78.68988075,125.62,125.61,0.523904]
[1741614890504,18.79181043,125.6,125.45,18.3]
[1741614890682,47.04771918,125.56,125.5,47.04771918]
[1741614890875,11.54,125.55,125.46,65.34771918]
[1741614891077,11.54,125.55,125.52,47.04771918]
[1741614891275,11.54,125.55,125.47,18.3]
[1741614891487,66.55281918,125.55,125.49,47.04771918]
[1741614892000,11.54,125.55,125.5,47.04771918]
[1741614892203,47.04771918,125.54,125.42,18.5]
[1741614892506,11.5,125.53,125.49,47.04771918]
[1741614892700,11.5,125.53,125.46,47.04771918]
[1741614892900,47.04771918,125.51,125.42,8.1726]
[1741614893085,47.04771918,125.5,125.42,8.1726]
[1741614893287,58.54771918,125.53,125.47,47.04771918]
[1741614893595,11.48,125.52,125.49,47.04771918]
[1741614893909,11.48,125.53,125.46,18.3]
[1741614894098,11.48,125.53,125.49,47.04771918]
[1741614894706,11.48,125.53,125.48,47.04771918]
[1741614894906,11.48,125.53,125.49,47.04771918]
[1741614895110,58.52771918,125.57,125.52,47.04771918]
[1741614895413,58.52771918,125.57,125.51,47.04771918]
[1741614895604,11.48,125.56,125.51,47.04771918]
[1741614895991,58.52771918,125.56,125.49,7.9687]
[1741614896394,58.52771918,125.56,125.51,47.04771918]
[1741614896593,11.48,125.56,125.52,47.04771918]
[1741614897007,11.48,125.56,125.52,55.01451918]
[1741614897201,189.76,125.58,125.54,47.04771918]
[1741614897507,189.76,125.58,125.55,47.04771918]
[1741614897712,189.76,125.58,125.56,47.04771918]
[1741614897881,189.76,125.58,125.52,7.9668]
[1741614898088,236.80771918,125.58,125.52,7.9668]
[1741614898290,47.04771918,125.56,125.5,18.3]
[1741614898808,47.04771918,125.57,125.51,47.04771918]
[1741614899009,47.04771918,125.56,125.49,7.9687]
[1741614899217,7.9636,125.57,125.47,19.9518]
[1741614899409,7.9636,125.57,125.47,1.6518]
[1741614899710,47.04771918,125.51,125.45,55.01881918]
[1741614899924,11.42,125.5,125.45,55.01881918]
[1741614900101,11.42,125.5,125.46,47.04771918]
[1741614900298,11.42,125.5,125.47,47.04771918]
[1741614900928,11.42,125.5,125.46,47.04771918]
[1741614901106,11.42,125.5,125.48,55.01701918]
[1741614901290,236.80771918,125.58,125.49,47.04771918]
[1741614901291,11.42,125.54,125.49,47.04771918]
[1741614901487,11.42,125.54,125.5,47.04771918]
[1741614901716,11.42,125.54,125.52,47.04771918]
[1741614901903,201.18,125.58,125.53,47.04771918]
[1741614902192,6.5153,125.64,125.56,47.04771918]
[1741614902419,47.04771918,125.61,125.55,47.04771918]
[1741614902719,47.04771918,125.6,125.54,47.04771918]
[1741614902916,47.04771918,125.62,125.56,47.04771918]
[1741614903109,47.04771918,125.62,125.57,55.01131918]
[1741614903312,47.04771918,125.62,125.52,85.54376804]
[1741614903509,47.04771918,125.58,125.53,55.01391918]
[1741614903713,19.36,125.63,125.53,27.8817]
[1741614903885,19.36,125.63,125.54,47.04771918]
[1741614904211,47.04771918,125.62,125.56,47.04771918]
[1741614904417,47.04771918,125.62,125.57,47.04771918]
[1741614904594,58.40771918,125.63,125.57,47.04771918]
[1741614904800,11.36,125.63,125.59,47.04771918]
[1741614905222,11.36,125.63,125.57,47.04771918]